Cogmind - Beta 9.2 @@@ ROGUE MODE // 2019.11.12 @ 20:45:05 Player: fartblaster Result: Destroyed by G-34 Mercenary with Small Laser Performance ------------- Evolutions (0) 0 Regions Visited (1) 200 Robots Destroyed (15) 75 Value Destroyed (337) 337 Prototype IDs (0) 0 Alien Tech Used (0) 0 Bonus (0) 0 TOTAL SCORE: 612 Bonus ------- None Cogmind --------- Core Integrity 0/250 Matter 260/300 Energy 160/160 System Corruption 0% Temperature Cool (6) Movement Walking (150) Ox1 Location -10/Materials Parts ------- > --- POWER (1) -------- Light Nuclear Core > --- PROPULSION (2) --- Aluminum Leg Aluminum Leg > --- UTILITY (2) ------ Heat Sink Large Storage Unit > --- WEAPON (2) ------- Small Laser Hammer > --- INVENTORY (10) --- Ion Engine Aluminum Leg Wheel Large Matter Pod (86) Visual Processing Unit Terrain Scanner Utility Shielding Datajack Peak State ------------ > --- POWER ------------ Light Nuclear Core > --- PROPULSION ------- Wheel Wheel > --- UTILITY ---------- Improved Heat Sink Large Storage Unit > --- WEAPON ----------- Hammer > --- INVENTORY -------- Ion Engine Aluminum Leg Heat Sink Large Matter Pod Visual Processing Unit Terrain Scanner Utility Shielding Small Laser Datajack [Rating: 11] Favorites ----------- Power Ion Engine Engine Ion Engine Power Core Light Nuclear Core Propulsion Light Treads Treads Light Treads Leg Aluminum Leg Wheel Wheel Utility Targeting Computer Device Improved Heat Sink Storage Large Storage Unit Processor Targeting Computer Weapon Light Assault Rifle Energy Gun Small Laser Ballistic Gun Light Assault Rifle Impact Weapon Hammer Build | -11 -10 ------- Run | Scr Mat Slots Evolved . | . . Power . | . . Propulsion . | . . Utility . | . . Weapon . | . . Parts Attached 25 | 6 19 Power 4 | 1 3 Engine 3 | 1 2 Core 1 | . 1 Reactor . | . . Propulsion 6 | 2 4 Treads 2 | 2 . Leg 2 | . 2 Wheel 2 | . 2 Hover . | . . Flight . | . . Utility 7 | 1 6 Device 3 | . 3 Storage 3 | 1 2 Processor 1 | . 1 Hackware . | . . Protection . | . . Artifact . | . . Weapon 8 | 2 6 Energy Gun 2 | 1 1 Energy Cannon . | . . Ballistic Gun 5 | 1 4 Ballistic Cannon . | . . Launcher . | . . Special Weapon . | . . Impact Weapon 1 | . 1 Slashing Weapon . | . . Piercing Weapon . | . . Special Melee Weapon . | . . Unidentified Prototypes . | . . Parts Lost 8 | . 8 Power 1 | . 1 Propulsion 2 | . 2 Utility 2 | . 2 Weapon 3 | . 3 Highest Loss Streak 5 | . 5 Average Slot Usage (%) 91 | . 91 Engine 11 | . 11 Core 2 | . 2 Treads 20 | . 20 Wheel 4 | . 4 Device 3 | . 3 Storage 14 | . 14 Processor 9 | . 9 Energy Gun 2 | . 2 Ballistic Gun 17 | . 17 Impact Weapon 3 | . 3 Naked Turns . | . . Heaviest Build 40 | 11 40 Greatest Support 40 | 40 40 Greatest Overweight (x) 7 | . 7 Average Overweight (x) . | . . Largest Inventory Capacity 12 | 6 12 Average Capacity 9 | 4 9 Most Carried 10 | 2 10 Average Carried 5 | . 5 Final Capacity 10 | 6 10 Final Carried 8 | 1 8 Class Distribution -------------------- 83% | Mutant 16% | Scavenger-Mutant Dominant Class ---------------- Mutant | -10/Materials Resources | -11 -10 ----------- Run | Scr Mat Matter Collected 546 | 199 347 Remotely . | . . Salvage Created 423 | . 423 Parts 22 | . 22 Haulers Intercepted . | . . Recyclers Shooed 1 | . 1 Parts Field Recycled . | . . Retrieved Matter . | . . Parts Self-Destructed . | . . Prevented . | . . Kills | -11 -10 ------- Run | Scr Mat Combat Hostiles Destroyed 10 | . 10 Guns 8 | . 8 Classes Destroyed 6 | . 6 Worker 1 | . 1 Builder 2 | . 2 Operator 1 | . 1 Watcher 1 | . 1 Swarmer 3 | . 3 Grunt 7 | . 7 Best Kill Streak 6 | . 6 Combat Bots Only 6 | . 6 Max Kills in Single Turn 1 | . 1 Gunslinging . | . . Exploded . | . . Melee . | . . Uniques/NPCs Destroyed . | . . Combat | -11 -10 -------- Run | Scr Mat Damage Taken 1030 | . 1030 Core 252 | . 252 Absorbed by Shields . | . . Core Remaining (%) 100 | 100 . Volleys Fired 43 | . 43 Largest 2 | . 2 Hottest 60 | . 60 Shots Fired 69 | . 69 Gun 69 | . 69 Cannon . | . . Launcher . | . . Special . | . . Kinetic 58 | . 58 Thermal 11 | . 11 Explosive . | . . Electromagnetic . | . . Robot Hit Streak 8 | . 8 Robot Miss Streak 3 | . 3 Penetration Max . | . . Secondary Targets 2 | . 2 Max Gunslinging Chain 1 | . 1 Shots Hit Robots 72 | . 72 Core Hits 23 | . 23 Critical Hits . | . . Critical Kills . | . . Critical Parts Destroyed . | . . Melee Attacks 30 | . 30 Impact 30 | . 30 Slashing . | . . Piercing . | . . Sneak Attacks 3 | . 3 Combat Hostiles . | . . Follow-up Attacks . | . . Damage Inflicted 992 | . 992 Guns 413 | . 413 Cannons . | . . Explosions . | . . Melee 579 | . 579 Ramming . | . . Kinetic 336 | . 336 Thermal 77 | . 77 Explosive . | . . Electromagnetic . | . . Impact 579 | . 579 Slashing . | . . Piercing . | . . Highest Corruption . | . . Average Corruption . | . . Corruption Purged . | . . Overload Shots . | . . Overflow Damage 84 | . 84 Projectiles . | . . Explosions . | . . Melee 84 | . 84 Knockbacks 1 | . 1 Impact 1 | . 1 Kinetic . | . . Secondary . | . . Self-Inflicted Damage . | . . Shots . | . . Rammed . | . . Targets Rammed . | . . Kicked . | . . Crushed . | . . Highest Temperature 26 | . 26 Average Temperature 11 | . 11 Received Heat Transfer 534 | . 534 Siege Activations . | . . Robots Corrupted . | . . Combat Hostiles . | . . Parts Fried 5 | . 5 Impact Corruptions 7 | . 7 Robots Melted . | . . Combat Hostiles . | . . Parts Melted . | . . Heat Transferred 175 | . 175 Parts Sabotaged . | . . Parts Stolen . | . . Parts Stripped . | . . Power Chain Reactions . | . . Missiles Intercepted . | . . Alert | -11 -10 ------- Run | Scr Mat Peak Influence 177 | . 177 Average Influence 59 | . 63 Maximum Alert Level . | . . Low Security (%) 100 | 100 100 Level 1 . | . . Level 2 . | . . Level 3 . | . . Level 4 . | . . Level 5 . | . . High Security . | . . Max Security . | . . Squads Dispatched 4 | . 4 Investigation 1 | . 1 Extermination . | . . Reinforcement 3 | . 3 Assault . | . . Garrison . | . . Intercept . | . . Construction Impeded . | . . Haulers Reinforced . | . . Stealth | -11 -10 --------- Run | Scr Mat Distress Signals . | . . Communications Jammed . | . . Distress Signals . | . . Times Spotted 20 | . 20 Peak Tracking Total 4 | . 4 Tactical Retreats 1 | . 1 Traps | -11 -10 ------- Run | Scr Mat Traps Triggered 2 | . 2 Indirectly . | . . Trap Hack Attempts . | . . Triggered . | . . Disarmed . | . . Reprogrammed . | . . Reused . | . . Traps Extracted . | . . Installed . | . . Triggered . | . . Machines | -11 -10 ---------- Run | Scr Mat Machines Disabled . | . . Max in Single Turn . | . . Machines Sabotaged . | . . Garrisons Compromised . | . . Overloaded Fab Kills . | . . Fab Network Shutdowns . | . . Hacking | -11 -10 --------- Run | Scr Mat Machines Accessed . | . . Terminals . | . . Fabricators . | . . Repair Stations . | . . Recycling Units . | . . Scanalyzers . | . . Garrison Access . | . . Total Hacks . | . . Successful . | . . Failed . | . . Catastrophic . | . . Database Lockouts . | . . Manual . | . . Terminals . | . . Fabricators . | . . Repair Stations . | . . Recycling Units . | . . Scanalyzers . | . . Garrison Access . | . . Terminal Hacks . | . . Fabricator Hacks . | . . Repair Station Hacks . | . . Recycling Unit Hacks . | . . Scanalyzer . | . . Garrison Access Hacks . | . . Unauthorized Hacks . | . . Terminals . | . . Fabricators . | . . Repair Stations . | . . Recycling Units . | . . Scanalyzers . | . . Garrison Access . | . . Data Cores Recovered . | . . Used . | . . Hacking Detections . | . . Full Trace Events . | . . Feedback Events . | . . Feedback Blocked . | . . Robot Schematics Acquired . | . . Robots Built . | . . Matter . | . . Time . | . . Total Robot Build Rating . | . . Part Schematics Acquired . | . . Parts Built . | . . Matter . | . . Time . | . . Total Part Build Rating . | . . Parts Repaired . | . . Time . | . . Parts Recycled . | . . Recycled Matter . | . . Retrieved Matter . | . . Retrieved Components . | . . Parts Scanalyzed . | . . Part Schematics Acquired . | . . Parts Damaged . | . . Bothacking | -11 -10 ------------ Run | Scr Mat Used RIF Installer . | . . Robots Hacked . | . . Non-combat . | . . Combat . | . . Robot Hacks Applied . | . . Relay Couplers Released . | . . Robots Rewired . | . . Allies Hacked . | . . Hacks Repelled . | . . Allies | -11 -10 -------- Run | Scr Mat Total Allies . | . . Largest Group . | . . Highest-Rated Group . | . . Highest-Rated Ally . | . . Total Orders . | . . Ally Attacks . | . . Total Damage . | . . Kills . | . . Allies Corrupted . | . . Allies Melted . | . . Intel | -11 -10 ------- Run | Scr Mat Robot Analysis Total . | . . Derelict Logs Recovered . | . . Drone Launches . | . . Drone Recoveries . | . . Exploration | -11 -10 ------------- Run | Scr Mat Turns Passed 1279 | 79 1200 Spaces Moved 730 | 53 677 Core 20 | 14 6 Treads 498 | 39 459 Legs 3 | . 3 Wheels 209 | . 209 Hover . | . . Flight . | . . Fastest Speed 50 | 50 90 Average Speed 139 | 130 140 Slowest Speed 400 | 160 400 Overloaded Moves . | . . Propulsion Burnouts . | . . Robots Hopped . | . . Cave-ins Triggered . | . . Exploration Rate (%) 39 | 3 75 Regions Visited 1 Branch Regions . Pre-discovered Areas . | . . Known Exits Taken . | . . Unknown Exits Taken 1 | 1 . Scrap Searched . | . . Spaces Dug . | . . Terrain Destroyed . | . . Melee . | . . Projectile . | . . AOE . | . . Actions | -11 -10 --------- Run | Scr Mat Total 878 | 60 818 Wait 23 | . 23 Move 729 | 52 677 Hop . | . . Pick Up 20 | 2 18 Fast Attach 13 | 5 8 Attach 7 | 1 6 Detach 1 | . 1 Swap 5 | . 5 Drop 7 | . 7 Fire 43 | . 43 Melee 30 | . 30 Ram . | . . Kick . | . . Crush . | . . Escape Stasis . | . . Rewire . | . . Trap . | . . Miscellaneous . | . . Route ------- -11/Scrapyard -10/Materials (discovered 2 exits: [*Mat] / [*Min]) History --------- Turn | Location | Event 4 | -11/Scrapyard | Discovered new exit (range 16) 80 | -11/Scrapyard | Entered Materials 306 | -10/Materials | Build established: Mutant 746 | -10/Materials | Discovered new exit (range 6) 997 | -10/Materials | Core integrity fell below 50% 999 | -10/Materials | Lost 5 parts (2n1u2w) 1036 | -10/Materials | Core integrity fell below 20% 1121 | -10/Materials | Discovered new exit (range 13) 1280 | -10/Materials | Destroyed by G-34 Mercenary with Small Laser Last Messages --------------- 01165_ K-01 Serf collects debris. 01166_ Sneak attack on O-16 Technician. 01166_ Destroyed Hacking Suite. 01166_ Destroyed Hover Unit. 01166_ O-16 Technician system corrupted by crushing effect. 01167_ O-16 Technician system terminally corrupted. 01167_ Hover Unit fried. 01167_ Datajack fried. 01168_ K-01 Serf collects debris. 01169_ Acquired 11 matter. 01171_ K-01 Serf collects debris. 01178_ K-01 Serf cleans the Electrolysis Chamber. 01191_ Acquired Aluminum Leg. 01198_ O-16 Technician: "IFF HANDSHAKE FAILED. SECURING TERMINAL." 01205_ ALERT: Hostiles spotted, dispatching reinforcements to Terminal M003. 01205_ K-01 Serf collects debris. 01256_ Imp. Heat Sink destroyed. 01267_ Dropped Wheel. 01268_ Acquired Aluminum Leg. Map ----- +----------------------------------------------------+ | ###+###?# #???##"|||"##???????? | | ??# #???#"" ""#???????? | | ## ##??# #???????? | | #### # #### < #???????? | | ????? # + #???????? | | ######## #### #???????? | | ## #??## ##???????? | | " ## ##??## ########??? | | " # ##### # #??? | | " # + #??? | | + # #??? | | " # # """" #??? | | " # #?"""" #??? | | " ###### ^^#?"""" #??? | | # # ^^#######???? | | ####### #???? | | ??????# # ##### #???? | | ??????# ###+###+###### #???? | | ??????# ???# ## #???? | | ??????###????# ##+##### | | ?????????????# # *! # | | ?????????????# """ """ #!!= # | | ?????????????# """ """ # # | | ?????????????# """ """ # # | | ?????????????# # # | | ?????????????# # @ # | | ?????????????########### # | | ?????????????????####### # | | ###????########### # g= # | | #???? #g # | | #??? + # | | #???? # # | | #????########### # # | | ###????# ## ######### | | ???????# ## # ???? | | ???????# ## # """ ? | | ???????# ## #""""" # | | ???????##+######+## #""""" # | | ######### #""""" # | | + # """ # | | ### + # | | #?###### # # | | #??????# """ # # | | #??????# """ # # | | #??????+ """ # # | | #??????# """ ######### | | #??????# #???????? | | #??????# #???????? | | #??????# """ #???????? | | #??????# """ #???????? | +----------------------------------------------------+ Best States ------------- Heat Dissipation 39 Energy Generation 14 Energy Capacity 250 Matter Stores 300 Matter Capacity 300 Sight Range 16 Terrain Scan Density 10 Evasion (%) 50 Targeting Accuracy 5 Recoil Reduction 2 Item Schematics ----------------- None Robot Schematics ------------------ None Fabricated ------------ Nothing Alien Tech Used ----------------- None Achievements -------------- None Challenges ------------ None Game ------ Seed AnalysisModifiedDoublenader Manual? 0 Play Time 00:12:28 Cumulative 13.6 hours Start 2019.11.12 @ 20:32:13 End 2019.11.12 @ 20:45:05 Sessions 1 Manual Loads 0 Difficulty Rogue Special Mode None Game No. 37 Rogue 37 Adventurer 0 Explorer 0 Win Type - Total 0 Types 0/0/0/0/0/0/0 Lore% 7 Gallery% 18 Achievement% 12 Wizard Run 0 Options --------- ASCII 0 Keyboard 1 Movement Numpad Keybinds 0 Fullscreen 1 Font 18/SmallcapsGlow Map View 76x50 Tactical HUD 1 Map Filters NONE Filters NONE Steam 1 RUN: 38ad480f-4664-4675-a4bd-7253b3a0897c